fUST/lending_fUST_20240821
["ID","MTS","AMOUNT","RATE_DAILY","PERIOD"]
[335464313,1724240029125,-500.0,0.00034931,21]
[335464314,1724240029135,-500.0,0.00034931,21]
[335464315,1724240029145,-500.0,0.00034931,21]
[335464316,1724240029154,-500.0,0.00034931,21]
[335464317,1724240029164,-500.0,0.00034931,21]
[335464318,1724240029173,-500.0,0.00034931,21]
[335464319,1724240029183,-500.0,0.00034931,21]
[335464320,1724240029192,-500.0,0.00034931,21]
[335464321,1724240029202,-500.0,0.00034931,21]
[335464322,1724240029211,-609.44555965,0.00034931,21]
[335464323,1724240029221,-500.0,0.00034931,21]
[335464324,1724240029230,-500.0,0.00034931,21]
[335464325,1724240029240,-500.0,0.00034931,21]
[335464326,1724240029249,-500.0,0.00034931,21]
[335464327,1724240029258,-500.0,0.00034931,21]
[335464328,1724240029268,-500.0,0.00034931,21]
[335464329,1724240029278,-500.0,0.00034931,21]
[335464330,1724240029287,-500.0,0.00034931,21]
[335464331,1724240029297,-500.0,0.00034931,21]
[335464332,1724240029307,-500.0,0.00034931,21]
[335464333,1724240029316,-500.0,0.00034931,21]
[335464334,1724240029325,-500.0,0.00034931,21]
[335464335,1724240029334,-500.0,0.00034931,21]
[335464336,1724240029344,-500.0,0.00034931,21]
[335464337,1724240029353,-500.0,0.00034931,21]
[335464338,1724240029363,-500.0,0.00034931,21]
[335464339,1724240029372,-523.0,0.00034931,21]
[335464340,1724240029382,-500.0,0.00034931,21]
[335464341,1724240029391,-500.0,0.00034931,21]
[335464342,1724240029400,-500.0,0.00034931,21]
[335464343,1724240029410,-500.0,0.00034931,21]
[335464344,1724240029419,-281.67,0.00034931,21]
[335464345,1724240029429,-500.0,0.00034931,21]
[335464346,1724240029438,-500.0,0.00034931,21]
[335464347,1724240029448,-500.0,0.00034931,21]
[335464348,1724240029457,-500.0,0.00034931,21]
[335464349,1724240029467,-500.0,0.00034931,21]
[335464350,1724240029477,-500.0,0.00034931,21]
[335464351,1724240029487,-500.0,0.00034931,21]
[335464352,1724240029497,-500.0,0.00034931,21]
[335464353,1724240029506,-500.0,0.00034931,21]
[335464354,1724240029515,-500.0,0.00034931,21]
[335464355,1724240029525,-500.0,0.00034931,21]
[335464356,1724240029535,-500.0,0.00034931,21]
[335464357,1724240029546,-192.0,0.00034931,21]
[335464358,1724240029556,-500.0,0.00034931,21]
[335464359,1724240029565,-500.0,0.00034931,21]
[335464360,1724240029575,-500.0,0.00034931,21]
[335464361,1724240029585,-500.0,0.00034931,21]
[335464362,1724240029594,-500.0,0.00034931,21]
[335464363,1724240029604,-500.0,0.00034931,21]
[335464364,1724240029615,-500.0,0.00034931,21]
[335464365,1724240029626,-500.0,0.00034931,21]
[335464366,1724240029635,-500.0,0.00034931,21]
[335464367,1724240029647,-500.0,0.00034931,21]
[335464368,1724240029657,-500.0,0.00034931,21]
[335464369,1724240029666,-500.0,0.00034931,21]
[335464370,1724240029676,-500.0,0.00034931,21]
[335464371,1724240029686,-500.0,0.00034931,21]
[335464372,1724240029698,-500.0,0.00034931,21]
[335464373,1724240029708,-639.68,0.00034931,21]
[335464374,1724240029718,-500.0,0.00034931,21]
[335464375,1724240029728,-500.0,0.00034931,21]
[335464376,1724240029738,-500.0,0.00034931,21]
[335464377,1724240029748,-500.0,0.00034931,21]
[335464378,1724240029759,-500.0,0.00034931,21]
[335464379,1724240029769,-500.0,0.00034931,21]
[335464380,1724240029779,-500.0,0.00034931,21]
[335464381,1724240029788,-500.0,0.00034931,21]
[335464382,1724240029797,-500.0,0.00034931,21]
[335464383,1724240029806,-500.0,0.00034931,21]
[335464384,1724240029816,-500.0,0.00034931,21]
[335464385,1724240029825,-500.0,0.00034931,21]
[335464386,1724240029834,-500.0,0.00034931,21]
[335464387,1724240029843,-500.0,0.00034931,21]
[335464388,1724240029854,-500.0,0.00034931,21]
[335464389,1724240029864,-500.0,0.00034931,21]
[335464390,1724240029874,-500.0,0.00034931,21]
[335464391,1724240029883,-500.0,0.00034931,21]
[335464392,1724240029892,-500.0,0.00034931,21]
[335464393,1724240029902,-274.63342248,0.00034931,21]
[335464394,1724240029911,-500.0,0.00034931,21]
[335464395,1724240029920,-500.0,0.00034931,21]
[335464396,1724240029930,-500.0,0.00034931,21]
[335464397,1724240029939,-185.6159274,0.00034931,21]
[335464398,1724240029949,-500.0,0.00034931,21]
[335464399,1724240029958,-500.0,0.00034931,21]
[335464400,1724240029967,-500.0,0.00034931,21]
[335464401,1724240029976,-500.0,0.00034931,21]
[335464402,1724240029986,-500.0,0.00034931,21]
[335464403,1724240029996,-500.0,0.00034931,21]
[335464404,1724240030005,-500.0,0.00034931,21]
[335464405,1724240030015,-500.0,0.00034931,21]
[335464406,1724240030024,-500.0,0.00034931,21]
[335464407,1724240030033,-500.0,0.00034931,21]
[335464408,1724240030042,-500.0,0.00034931,21]
[335464409,1724240030052,-154.92159446,0.00034931,21]
[335464410,1724240030062,-500.0,0.00034931,21]
[335464411,1724240030071,-500.0,0.00034931,21]
[335464412,1724240030080,-508.33966225,0.00034931,21]
[335464413,1724240030090,-500.0,0.00034931,21]
[335464414,1724240030099,-500.0,0.00034931,21]
[335464415,1724240030109,-500.0,0.00034931,21]
[335464416,1724240030119,-500.0,0.00034931,21]
[335464417,1724240030128,-500.0,0.00034931,21]
[335464418,1724240030138,-500.0,0.00034931,21]
[335464419,1724240030148,-500.0,0.00034931,21]
[335464420,1724240030158,-500.0,0.00034931,21]
[335464421,1724240030168,-500.0,0.00034931,21]
[335464422,1724240030177,-500.0,0.00034931,21]
[335464423,1724240030186,-507.16534283,0.00034931,21]
[335464424,1724240030196,-500.0,0.00034931,21]
[335464425,1724240030206,-500.0,0.00034931,21]
[335464426,1724240030215,-500.0,0.00034931,21]
[335464427,1724240030224,-500.0,0.00034931,21]
[335464428,1724240030233,-500.0,0.00034931,21]
[335464429,1724240030243,-500.0,0.00034931,21]
[335464430,1724240030253,-500.0,0.00034931,21]
[335464431,1724240030262,-500.0,0.00034931,21]
[335464432,1724240030272,-602.4,0.00034931,21]
[335464433,1724240030281,-500.0,0.00034931,21]
[335464434,1724240030290,-519.39063108,0.00034931,21]
[335464435,1724240030300,-500.0,0.00034931,21]
[335464436,1724240030310,-500.0,0.00034931,21]
[335464437,1724240030414,-500.0,0.00034931,21]
[335464438,1724240030426,-500.0,0.00034931,21]
[335464439,1724240030437,-500.0,0.00034931,21]
[335464440,1724240030448,-339.52444209,0.00034931,21]
[335464441,1724240030458,-505.67996345,0.00034931,21]
[335464442,1724240030468,-500.0,0.00034931,21]
[335464443,1724240030478,-500.0,0.00034931,21]
[335464444,1724240030487,-500.0,0.00034931,21]
[335464445,1724240030498,-500.0,0.00034931,21]
[335464446,1724240030510,-500.0,0.00034931,21]
[335464447,1724240030521,-500.0,0.00034931,21]
[335464448,1724240030531,-500.0,0.00034931,21]
[335464449,1724240030543,-500.0,0.00034931,21]
[335464450,1724240030554,-500.0,0.00034931,21]
[335464451,1724240030564,-500.0,0.00034931,21]
[335464452,1724240030575,-500.0,0.00034931,21]
[335464453,1724240030585,-500.0,0.00034931,21]
[335464454,1724240030596,-500.0,0.00034931,21]
[335464455,1724240030606,-500.0,0.00034931,21]
[335464456,1724240030617,-500.0,0.00034931,21]
[335464457,1724240030629,-500.0,0.00034931,21]
[335464458,1724240030639,-160.50711707,0.00034931,21]
[335464459,1724240030650,-500.0,0.00034931,21]
[335464460,1724240030659,-500.0,0.00034931,21]
[335464461,1724240030668,-500.0,0.00034931,21]
[335464462,1724240030677,-500.0,0.00034931,21]
[335464463,1724240030689,-500.0,0.00034931,21]
[335464464,1724240030701,-500.0,0.00034931,21]
[335464465,1724240030712,-500.0,0.00034931,21]
[335464466,1724240030724,-500.0,0.00034931,21]
[335464467,1724240030735,-500.0,0.00034931,21]
[335464468,1724240030747,-500.0,0.00034931,21]
[335464469,1724240030757,-500.0,0.00034931,21]
[335464470,1724240030770,-500.0,0.00034931,21]
[335464471,1724240030780,-308.3,0.00034931,21]
[335464472,1724240030790,-500.0,0.00034931,21]
[335464473,1724240030800,-503.15492828,0.00034931,21]
[335464474,1724240030809,-500.0,0.00034931,21]
[335464475,1724240030819,-500.0,0.00034931,21]
[335464476,1724240030828,-500.0,0.00034931,21]
[335464477,1724240030838,-500.0,0.00034931,21]
[335464478,1724240030847,-500.0,0.00034931,21]
[335464479,1724240030857,-500.0,0.00034931,21]
[335464480,1724240030869,-500.0,0.00034931,21]
[335464481,1724240030880,-500.0,0.00034931,21]
[335464482,1724240030892,-500.0,0.00034931,21]
[335464483,1724240030904,-500.0,0.00034931,21]
[335464484,1724240030914,-500.0,0.00034931,21]
[335464485,1724240030925,-500.0,0.00034931,21]
[335464486,1724240030935,-500.0,0.00034931,21]
[335464487,1724240030945,-500.0,0.00034931,21]
[335464488,1724240030955,-500.0,0.00034931,21]
[335464489,1724240030965,-500.0,0.00034931,21]
[335464490,1724240030974,-500.0,0.00034931,21]
[335464491,1724240030983,-500.0,0.00034931,21]
[335464492,1724240030992,-500.0,0.00034931,21]
[335464493,1724240031002,-500.0,0.00034931,21]
[335464494,1724240031011,-500.0,0.00034931,21]
[335464495,1724240031021,-235.2024218,0.00034931,21]
[335464496,1724240031030,-500.0,0.00034931,21]
[335464497,1724240031040,-500.0,0.00034931,21]
[335464498,1724240031050,-500.0,0.00034931,21]
[335464499,1724240031059,-500.0,0.00034931,21]
[335464500,1724240031069,-500.0,0.00034931,21]
[335464501,1724240031079,-500.0,0.00034931,21]
[335464502,1724240031088,-500.0,0.00034931,21]
[335464503,1724240031098,-500.0,0.00034931,21]
[335464504,1724240031107,-247.92911202,0.00034931,21]
[335464505,1724240031116,-500.0,0.00034931,21]
[335464506,1724240031127,-500.0,0.00034931,21]
[335464507,1724240031136,-500.0,0.00034931,21]
[335464508,1724240031145,-500.0,0.00034931,21]
[335464509,1724240031155,-500.0,0.00034931,21]
[335464510,1724240031164,-500.0,0.00034931,21]
[335464511,1724240031173,-500.0,0.00034931,21]
[335464512,1724240031183,-500.0,0.00034931,21]
[335464513,1724240031192,-500.0,0.00034931,21]
[335464514,1724240031201,-372.4,0.00034931,21]
[335464515,1724240031211,-500.0,0.00034931,21]
[335464516,1724240031220,-500.0,0.00034931,21]
[335464517,1724240031229,-500.0,0.00034931,21]
[335464518,1724240031239,-500.0,0.00034931,21]
[335464519,1724240031248,-500.0,0.00034931,21]
[335464520,1724240031257,-500.0,0.00034931,21]
[335464521,1724240031266,-500.0,0.00034931,21]
[335464522,1724240031275,-546.4,0.00034931,21]
[335464523,1724240031285,-1843.4,0.00034931,21]
[335464524,1724240031294,-1843.4,0.00034931,21]
[335464525,1724240031304,-1843.4,0.00034931,21]
[335464526,1724240031315,-1843.4,0.00034931,21]
[335464527,1724240031326,-1843.4,0.00034931,21]
[335464528,1724240031337,-1843.4,0.00034931,21]
[335464529,1724240031347,-1843.4,0.00034931,21]
[335464530,1724240031356,-1843.4,0.00034931,21]
[335464531,1724240031365,-1843.4,0.00034931,21]
[335464532,1724240031377,-1843.4,0.00034931,21]
[335464533,1724240031386,-1843.4,0.00034931,21]
[335464534,1724240031395,-1843.4,0.00034931,21]
[335464535,1724240031405,-1843.4,0.00034931,21]
[335464536,1724240031415,-1843.4,0.00034931,21]
[335464537,1724240031425,-1843.4,0.00034931,21]
[335464538,1724240031435,-1843.4,0.00034931,21]
[335464539,1724240031444,-1843.4,0.00034931,21]
[335464540,1724240031454,-1843.4,0.00034931,21]
[335464541,1724240031464,-1843.4,0.00034931,21]
[335464542,1724240031473,-500.0,0.00034931,21]
[335464543,1724240031482,-1843.4,0.00034931,21]
[335464544,1724240031492,-500.0,0.00034931,21]
[335464545,1724240031502,-1843.4,0.00034931,21]
[335464546,1724240031512,-306.28102053,0.00034931,21]
[335464547,1724240031522,-500.0,0.00034931,21]
[335464548,1724240031532,-1843.4,0.00034931,21]
[335464549,1724240031542,-1843.4,0.00034931,21]
[335464550,1724240031553,-1843.60760009,0.00034931,21]
[335464551,1724240031563,-500.0,0.00034931,21]
[335464552,1724240031574,-500.0,0.00034931,21]
[335464553,1724240031584,-500.0,0.00034931,21]
[335464554,1724240031594,-500.0,0.00034931,21]
[335464555,1724240031604,-500.0,0.00034931,21]
[335464556,1724240031614,-262.47896545,0.00034931,21]
[335464557,1724240031625,-500.0,0.00034931,21]
[335464558,1724240031636,-500.0,0.00034931,21]
[335464559,1724240031647,-500.0,0.00034931,21]
[335464560,1724240031657,-500.0,0.00034931,21]
[335464561,1724240031667,-500.0,0.00034931,21]
[335464562,1724240031678,-500.0,0.00034931,21]
[335464563,1724240031690,-500.0,0.00034931,21]
[335464564,1724240031701,-500.0,0.00034931,21]
[335464565,1724240031710,-529.29661356,0.00034931,21]
[335464566,1724240031719,-500.0,0.00034931,21]
[335464567,1724240031729,-500.0,0.00034931,21]
[335464568,1724240031739,-499.06762616,0.00034931,21]
[335464569,1724240031748,-500.0,0.00034931,21]
[335464570,1724240031758,-500.0,0.00034931,21]
[335464571,1724240031767,-500.0,0.00034931,21]
[335464572,1724240031777,-500.0,0.00034931,21]
[335464573,1724240031787,-500.0,0.00034931,21]
[335464574,1724240031796,-508.10616289,0.00034931,21]
[335464575,1724240031806,-500.0,0.00034931,21]
[335464576,1724240031815,-500.0,0.00034931,21]
[335464577,1724240031824,-500.0,0.00034931,21]
[335464578,1724240031834,-500.0,0.00034931,21]
[335464579,1724240031843,-500.0,0.00034931,21]
[335464580,1724240031853,-480.46319267,0.00034931,21]
[335464581,1724240031864,-500.0,0.00034931,21]
[335464582,1724240031875,-500.0,0.00034931,21]
[335464583,1724240031884,-500.0,0.00034931,21]
[335464584,1724240031893,-500.0,0.00034931,21]
[335464585,1724240031903,-183.03915491,0.00034931,21]
[335464586,1724240031912,-500.0,0.00034931,21]
[335464587,1724240031921,-500.0,0.00034931,21]
[335464588,1724240031930,-500.0,0.00034931,21]
[335464589,1724240031940,-500.0,0.00034931,21]
[335464590,1724240031949,-351.50779788,0.00034931,21]
[335464591,1724240031959,-500.0,0.00034931,21]
[335464592,1724240031968,-500.0,0.00034931,21]
[335464593,1724240031978,-500.0,0.00034931,21]
[335464594,1724240031988,-504.66405675,0.00034931,21]
[335464595,1724240031998,-500.0,0.00034931,21]
[335464596,1724240032007,-500.0,0.00034931,21]
[335464597,1724240032020,-500.0,0.00034931,21]
[335464598,1724240032029,-501.3616432,0.00034931,21]
[335464599,1724240032039,-500.0,0.00034931,21]
[335464600,1724240032048,-500.0,0.00034931,21]
[335464601,1724240032057,-500.0,0.00034931,21]
[335464602,1724240032067,-500.0,0.00034931,21]
[335464603,1724240032077,-500.0,0.00034931,21]
[335464604,1724240032087,-501.97247459,0.00034931,21]
[335464605,1724240032098,-500.0,0.00034931,21]
[335464606,1724240032108,-500.0,0.00034931,21]
[335464607,1724240032117,-500.0,0.00034931,21]
[335464608,1724240032127,-500.0,0.00034931,21]
[335464609,1724240032136,-500.0,0.00034931,21]
[335464610,1724240032145,-500.0,0.00034931,21]
[335464611,1724240032154,-500.0,0.00034931,21]
[335464612,1724240032163,-500.0,0.00034931,21]
[335464613,1724240032172,-500.0,0.00034931,21]
[335464614,1724240032181,-500.0,0.00034931,21]
[335464615,1724240032191,-500.0,0.00034931,21]
[335464616,1724240032202,-500.0,0.00034931,21]
[335464617,1724240032212,-500.0,0.00034931,21]
[335464618,1724240032222,-500.0,0.00034931,21]
[335464619,1724240032232,-500.0,0.00034931,21]
[335464620,1724240032241,-500.0,0.00034931,21]
[335464621,1724240032250,-500.0,0.00034931,21]
[335464622,1724240032259,-500.0,0.00034931,21]
[335464623,1724240032269,-500.0,0.00034931,21]
[335464624,1724240032280,-500.0,0.00034931,21]
[335464625,1724240032290,-502.11647915,0.00034931,21]
[335464626,1724240032301,-500.0,0.00034931,21]
[335464627,1724240032311,-254.71601146,0.00034931,21]
[335464628,1724240032322,-500.0,0.00034931,21]
[335464629,1724240032331,-500.0,0.00034931,21]
[335464630,1724240032341,-500.0,0.00034931,21]
[335464631,1724240032351,-500.0,0.00034931,21]
[335464632,1724240032359,-500.0,0.00034931,21]
[335464633,1724240032369,-500.0,0.00034931,21]
[335464634,1724240032378,-500.0,0.00034931,21]
[335464635,1724240032388,-505.4839967,0.00034931,21]
[335464636,1724240032397,-500.0,0.00034931,21]
[335464637,1724240032406,-500.0,0.00034931,21]
[335464638,1724240032416,-500.0,0.00034931,21]
[335464639,1724240032425,-501.64906622,0.00034931,21]
[335464640,1724240032434,-500.0,0.00034931,21]
[335464641,1724240032443,-521.53329865,0.00034931,21]
[335464642,1724240032452,-500.0,0.00034931,21]
[335464643,1724240032461,-500.0,0.00034931,21]
[335464644,1724240032470,-500.0,0.00034931,21]
[335464645,1724240032479,-500.0,0.00034931,21]
[335464646,1724240032488,-500.0,0.00034931,21]
[335464647,1724240032497,-500.0,0.00034931,21]
[335464648,1724240032506,-500.0,0.00034931,21]
[335464649,1724240032515,-500.0,0.00034931,21]
[335464650,1724240032525,-280.62243127,0.00034931,21]
[335464651,1724240032535,-3200.0,0.00034931,7]
[335464652,1724240032545,-500.0,0.00034931,3]
[335464653,1724240032554,-151.0,0.00034931,4]
[335464654,1724240032564,-151.0,0.00034931,4]
[335464655,1724240032575,-3000.0,0.0003494,21]
[335464656,1724240032584,-3000.0,0.0003495,21]
[335464657,1724240032594,-3000.0,0.0003496,22]
[335464658,1724240032603,-3000.0,0.0003497,22]
[335464659,1724240032613,-249.31268901,0.00034973,5]
[335464660,1724240032622,-3000.0,0.0003498,22]
[335464661,1724240032632,-3000.0,0.0003499,22]
[335464662,1724240032642,-59092.98157878,0.00034999,3]
[335464663,1724240032651,-3847465.8450907,0.00035,30]
[335464664,1724240038650,-153.0,0.00026265,2]
[335464665,1724240038660,-153.0,0.00026265,2]
[335464666,1724240038671,-153.0,0.00026265,2]
[335464667,1724240038680,-500.0,0.00034849,21]
[335464668,1724240038693,-500.0,0.00034849,21]
[335464669,1724240038703,-500.0,0.00034849,21]
[335464670,1724240038713,-500.0,0.00034849,21]
[335464671,1724240038723,-500.0,0.00034849,21]
[335464672,1724240038734,-500.0,0.00034849,21]
[335464673,1724240038743,-500.0,0.00034849,21]
[335464674,1724240038752,-500.0,0.00034849,21]
[335464675,1724240038761,-500.0,0.00034849,21]
[335464676,1724240038772,-550.0688255,0.00034849,21]
[335464677,1724240038781,-500.0,0.00034849,21]
[335464678,1724240038790,-500.0,0.00034849,21]
[335464679,1724240038799,-500.0,0.00034849,21]
[335464680,1724240038808,-268.80978942,0.00034849,21]
[335464681,1724240038818,-500.0,0.00034849,21]
[335464682,1724240038827,-500.0,0.00034849,21]
[335464683,1724240038837,-500.0,0.00034849,21]
[335464684,1724240038846,-500.0,0.00034849,21]
[335464685,1724240038856,-500.0,0.00034849,21]
[335464686,1724240038865,-500.0,0.00034849,21]
[335464687,1724240038875,-500.0,0.00034849,21]
[335464688,1724240038886,-500.0,0.00034849,21]
[335464689,1724240038897,-500.0,0.00034849,21]
[335464690,1724240038908,-296.39,0.00034849,21]
[335464691,1724240038918,-500.0,0.00034849,21]
[335464692,1724240038928,-500.0,0.00034849,21]
[335464693,1724240038937,-500.0,0.00034849,21]
[335464694,1724240038946,-500.0,0.00034849,21]
[335464695,1724240038956,-860656.92443579,0.00035,30]
[335464696,1724240114928,8302.75077361,0.00013971,2]
[335464697,1724240156075,1381.95829376,0.00013971,3]
[335464698,1724240174212,154.95403965,0.00013971,2]
[335464699,1724240179771,240.44782202,0.00013971,2]
[335464700,1724240182700,309.55115084,0.00013971,2]
[335464701,1724240202823,232.18595639,0.00013971,2]
[335464709,1724240420254,3799.40308353,0.00013971,2]
[335464710,1724240473065,204.44389217,0.00013971,2]
[335464711,1724240477462,850.86713135,0.00013971,2]
[335464712,1724240479347,196.69322642,0.00013971,2]
[335464713,1724240500528,210.99102179,0.00013971,2]
[335464714,1724240508500,2128.04084944,0.00013971,2]
[335464715,1724240508969,17820.88921239,0.00013971,2]
[335464716,1724240510638,520.25072733,0.00013971,2]
[335464717,1724240511206,413.66267349,0.00013971,2]
[335464718,1724240511703,569.66960368,0.00013971,2]
[335464719,1724240519968,2694.20190589,0.00013971,2]
[335464720,1724240520638,190.07446844,0.00013971,2]
[335464721,1724240525287,160.44466579,0.00013971,2]
[335464722,1724240527323,320.27103328,0.00013971,2]
[335464723,1724240527767,728.34861839,0.00013971,2]
[335464724,1724240528289,154.86916128,0.00013971,2]
[335464725,1724240536690,155.06860153,0.00013971,2]
[335464726,1724240536913,534.52389159,0.00013971,2]
[335464727,1724240537065,154.83158483,0.00013971,2]
[335464728,1724240541626,435.3140435,0.00013971,2]
[335464729,1724240546288,207.40309535,0.00013971,2]
[335464740,1724240554198,710.71288058,0.00013971,2]
[335464741,1724240568233,288.27624498,0.00013971,2]
[335464742,1724240571131,501.8361156,0.00013971,2]
[335464743,1724240582574,178.7742425,0.00013971,2]
[335464744,1724240606277,4348.81562118,0.00013971,2]
[335464745,1724240633285,543.67907992,0.00013971,2]
[335464746,1724240637896,194.82337617,0.00013971,2]
[335464747,1724240652506,493.25192424,0.00013971,2]
[335464748,1724240673735,482.8319776,0.00013971,2]
[335464749,1724240679253,258.90723421,0.00013971,2]
[335464750,1724240682987,316.01527179,0.00013971,2]
[335464751,1724240689109,155.72760011,0.00013971,2]
[335464753,1724240724229,569.4426238,0.00013971,2]
[335464754,1724240817950,1352.3,0.0002031,120]
[335464819,1724241032563,-154.79103211,0.00014174,2]
[335464821,1724241032573,-300.27059,0.00014247,2]
[335464824,1724241032584,-210.4541,0.00014247,2]
[335464826,1724241032593,-1852.25234889,0.00014285,2]
[335464828,1724241032605,-1147.74765111,0.00014285,2]
[335464830,1724241032615,-158.021746,0.00014706,2]
[335464832,1724241032624,-158.021746,0.00014816,2]
[335464834,1724241032634,-158.021746,0.00014925,2]
[335464836,1724241032643,-158.021746,0.00015035,2]
[335464838,1724241032653,-288.528954,0.00015095,2]
[335464840,1724241032662,-14277.86832124,0.00015134,2]
[335464960,1724241038705,-4008.99472594,0.00015134,2]
[335464966,1724241038759,-4424.12241892,0.00015134,2]
[335464969,1724241038771,-158.021746,0.00015144,2]
[335464972,1724241038782,-1387.9529976,0.00015166,2]
[335464974,1724241038793,-158.021746,0.00015254,2]
[335464976,1724241038802,-158.021746,0.00015363,2]
[335464978,1724241038812,-158.021746,0.00015473,2]
[335464979,1724241038823,-2726.19706008,0.0001629,2]
[335464980,1724241038835,-3000.0,0.000163,2]
[335464981,1724241038847,-3000.0,0.0001631,2]
[335464982,1724241038857,-3000.0,0.0001632,2]
[335464983,1724241038870,-3000.0,0.0001633,2]
[335464984,1724241038882,-3000.0,0.0001634,2]
[335464985,1724241038892,-3000.0,0.0001635,2]
[335464986,1724241038902,-3000.0,0.0001636,2]
[335464987,1724241038920,-3000.0,0.0001637,2]
[335464988,1724241038934,-3000.0,0.0001638,2]
[335464989,1724241038944,-3000.0,0.0001639,2]
[335464990,1724241038955,-3000.0,0.000164,2]
[335464991,1724241038967,-3000.0,0.0001641,2]
[335464992,1724241038979,-396.79922427,0.00016419,2]
[335464993,1724241038990,-3000.0,0.0001642,2]
[335464994,1724241039003,-3000.0,0.0001643,2]
[335464995,1724241039013,-3000.0,0.0001644,2]
[335464996,1724241039024,-500.0,0.00016449,2]
[335464997,1724241039034,-154.37681234,0.00016449,2]
[335464998,1724241039045,-500.0,0.00016449,2]
[335464999,1724241039059,-473.35573742,0.00016449,2]
[335465000,1724241039069,-500.0,0.00016449,2]
[335465001,1724241039079,-500.0,0.00016449,2]
[335465002,1724241039089,-621.8542117,0.00016449,2]
[335465003,1724241039098,-3000.0,0.0001645,2]
[335465004,1724241039108,-3000.0,0.0001646,2]
[335465005,1724241039117,-3000.0,0.0001647,2]
[335465006,1724241039128,-3000.0,0.0001648,2]
[335465007,1724241039138,-3000.0,0.0001649,2]
[335465008,1724241039148,-3000.0,0.000165,2]
[335465009,1724241039158,-3000.0,0.0001651,2]
[335465010,1724241039168,-8158.38055075,0.0001651,2]
[335465011,1724241039178,-3000.0,0.0001652,2]
[335465012,1724241039188,-3000.0,0.0001653,2]
[335465013,1724241039197,-3000.0,0.0001654,2]
[335465014,1724241039207,-3000.0,0.0001655,2]
[335465015,1724241039216,-3000.0,0.0001656,2]
[335465016,1724241039226,-4434.694236,0.0001657,2]
[335465017,1724241039236,-478.15314451,0.0001706,2]
[335465018,1724241039246,-169.443835,0.00017821,2]
[335465019,1724241039255,-465.65765723,0.00017913,2]
[335465020,1724241039265,-465.03288286,0.00018809,2]
[335465021,1724241039275,-2726.19706004,0.00018949,2]
[335465022,1724241039284,-728.0625378,0.00019071,2]
[335465023,1724241039294,-800.0,0.00019091,2]
[335465024,1724241039303,-332.35258661,0.00019178,2]
[335465025,1724241039313,-171.416253,0.00019178,2]
[335465026,1724241039323,-251.0,0.00019178,2]
[335465027,1724241039332,-800.0,0.00019408,2]
[335465028,1724241039341,-1900.0,0.00019633,2]
[335465029,1724241039352,-465.00164414,0.0001975,2]
[335465030,1724241039362,-800.0,0.00019789,2]
[335465031,1724241039372,-800.0,0.00019875,2]
[335465032,1724241039381,-800.0,0.00019912,2]
[335465033,1724241039390,-287.17173053,0.0002,2]
[335465034,1724241039401,-10157.57444704,0.0002,2]
[335465035,1724241039413,-156.66298998,0.0002,2]
[335465036,1724241039423,-478.15312689,0.00020024,2]